{"text_format":"3","workbook":"xlsx","n_sheets":3,"sheets":["Avgifter","Æresm.","Avg.kont"],"not_rendered":{"images":1,"defined_names":1},"read":"whole","date_system":"1900"}

{"sheet":"Avgifter","index":0,"n_rows":34,"n_cols":10,"rows_kept":34,"merged":[[1,0,1,4],[4,1,4,3],[4,7,4,9],[6,3,6,4],[16,3,16,4],[25,3,25,7],[25,8,25,9]]}
["Norges Hesteskokaster Forbund."]
["Avgift til NHF for avviklet arrangement."]
["Aktuelle felter å fylle ut er markert med fargen:  "]
[]
["Klubb:",{"$nulls":3},"Dato:",null,"Utfylt av:"]
[]
[{"$nulls":3},"Antall deltakere."]
["Type stemner","Stemnenavn","Dato","Kl. 1","Kl. 2/junior","*Herav æresmedl.","**Stemne avgift","**NC avgift","Stemne avg.","NC avg."]
["DNC/SNC",{"$nulls":5},40,30,{"$f":"G9*D9","v":0},{"$f":"H9*(D9+E9)","v":0}]
["DNC/SNC",{"$nulls":5},40,30,0,0]
["DNC/SNC",{"$nulls":5},40,30,0,0]
["NC",{"$nulls":5},40,30,0,0]
["NC",{"$nulls":5},40,30,0,0]
["NC",{"$nulls":5},40,30,0,0]
["NM Singel/NC",{"$nulls":5},40,30,{"$f":"(D15-F15)*(G15)","v":0},{"$f":"(D15-F15+E15)*(H15)","v":0}]
[]
[{"$nulls":3},"Antall deltakere, par, lag"]
["NM stemner",null,null,"Kl. 1","Kl. 2/junior","Herav æresmedl."]
["NM Singel ikkje NC",{"$nulls":5},40,0,{"$f":"(D19-F19)*(G19)","v":0}]
["NM Par",{"$nulls":5},80,0,{"$f":"(D20-(F20/2))*(G20)","v":0}]
["Nm par/mix",{"$nulls":5},80,0,{"$f":"(D21-(F21/2))*(G21)","v":0}]
["Nm hesteskogolf",{"$nulls":5},40,0,{"$f":"(D22-F22)*(G22)","v":0}]
["NM X-Kast",{"$nulls":5},40,0,{"$f":"(D23-F23)*(G23)","v":0}]
["NM Lag",{"$nulls":5},160,0,{"$f":"(D24-(F24/4))*(G24)","v":0}]
[{"$nulls":7},"Summer:",{"$f":"SUM(I9:I24)","v":0},{"$f":"SUM(J9:J24)","v":0}]
[{"$nulls":3},"Sum stemne/NC-avgift å betale  til NHF totalt kr:",{"$nulls":4},{"$f":"I25+J25","v":0}]
[]
["* Oversikt æresmedlemmer pr 2023 på arket mrk \"Æresm\""]
["** Oversikt avgifter kontingent pr 2023 på arket mrk \"Avg.kont\""]
[]
["Dette skjemaet oversendes på E-mail til kasserer i NHF som dokumentasjon for innbetaling av arrangement-avgift."]
[]
["Arrangement-avgift innbetales til kontonr: 3705 16 91238",{"$nulls":4},"(Senest 1 mnd. etter arrangementet)."]
["16.02.2023,LAK"]

{"sheet":"Æresm.","index":1,"n_rows":21,"n_cols":4,"rows_kept":21}
["Æresmedlemer i Norges Hesteskokasterforbund"]
[]
["Navn","Klubb","Utnemnd","Merknad"]
["Magne Gloppestad","Gloppen",2006]
["Øyvind Hegrenes","Førde",2012]
["Tollef Årdal","Skjold",2017]
["Torbjørg Årdal","Skjold",2017]
["Arne Drageset","Stord",2019,"Død 2022"]
["Oddmund Berg","Hobøl",2019,"Død 2020"]
["Otto Kristianen","Hobøl",2019]
["Oddmund Dingen","Nordhordland",2021]
["Johannes Nedrebø","Skjold",2021]
["Synnøve Fagerstrand ","Mino",2023]
["Per Geir Vatna","Stord",2024]
[]
[]
[]
[]
[]
[]
["07.05.2024. LAK"]

{"sheet":"Avg.kont","index":2,"n_rows":0,"n_cols":0,"rows_kept":0}